bitfinex/quotes_BTCUSD_20230404
["timestamp","ask_amount","ask_price","bid_price","bid_amount"]
[1680601661803,0.24917806,28153.0,28152.0,0.54753246]
[1680601662451,0.24944681,28153.0,28152.0,0.54753246]
[1680601663361,0.24944681,28153.0,28152.0,0.2129775]
[1680601664011,0.24944681,28153.0,28152.0,0.54754033]
[1680601665624,0.24944681,28153.0,28152.0,0.21297901]
[1680601666303,0.24944681,28153.0,28152.0,0.54754176]
[1680601666759,0.24944681,28153.0,28152.0,0.21298141]
[1680601666982,0.24944681,28153.0,28152.0,0.63254397]
[1680601667222,0.24944681,28153.0,28152.0,0.54753809]
[1680601671264,0.21082235,28153.0,28152.0,0.54753809]
[1680601671919,0.18589375,28153.0,28152.0,0.98056424]
[1680601672137,0.18571375,28153.0,28152.0,1.02382424]
[1680601672572,0.185445,28153.0,28152.0,1.02382424]
[1680601673022,0.185445,28153.0,28152.0,0.7601029]
[1680601673238,0.185445,28153.0,28152.0,1.02732371]
[1680601675284,0.185445,28153.0,28152.0,1.23649322]
[1680601675502,0.185445,28153.0,28152.0,1.02732371]
[1680601675718,0.185445,28153.0,28152.0,1.02850771]
[1680601675935,0.185445,28153.0,28152.0,1.02868771]
[1680601675936,0.2060045,28153.0,28152.0,1.02868771]
[1680601677535,0.2061845,28153.0,28152.0,1.02850771]
[1680601677957,0.2061845,28153.0,28152.0,1.11157361]
[1680601678169,0.2061845,28153.0,28152.0,1.11157245]
[1680601678398,0.2061845,28153.0,28152.0,1.02812071]
[1680601678612,0.2061845,28153.0,28152.0,0.98406371]
[1680601681353,0.185625,28153.0,28152.0,0.98406371]
[1680601681555,0.00098169,28157.0,28152.0,1.12423649]
[1680601681790,0.00098169,28157.0,28156.0,0.1515]
[1680601681998,0.09265412,28165.0,28159.0,0.10742588]
[1680601681999,0.009942,28164.0,28159.0,0.10742588]
[1680601682199,0.09283412,28165.0,28161.0,0.2881708]
[1680601682200,8e-05,28165.0,28161.0,0.2881708]
[1680601682399,0.010201,28165.0,28162.0,0.57227013]
[1680601682595,0.010201,28165.0,28162.0,0.52684513]
[1680601682824,0.010201,28165.0,28163.0,0.044608]
[1680601683047,0.010021,28165.0,28163.0,0.18650481]
[1680601683196,0.010021,28165.0,28164.0,0.044623]
[1680601683661,0.010021,28165.0,28163.0,0.04212]
[1680601683808,8e-05,28165.0,28164.0,0.0752]
[1680601684011,8e-05,28165.0,28164.0,0.117874]
[1680601685044,8e-05,28165.0,28164.0,0.54379295]
[1680601685257,8e-05,28165.0,28164.0,0.193674]
[1680601685686,8e-05,28165.0,28164.0,0.207876]
[1680601685904,8e-05,28165.0,28164.0,0.681516]
[1680601686127,8e-05,28165.0,28164.0,0.702516]
[1680601686342,8e-05,28165.0,28164.0,0.981516]
[1680601686550,8e-05,28165.0,28164.0,1.009516]
[1680601686774,8e-05,28165.0,28164.0,0.981516]
[1680601687201,8e-05,28165.0,28164.0,0.695296]
[1680601687446,8e-05,28165.0,28164.0,0.723296]
[1680601688907,0.17008,28165.0,28164.0,0.723296]
[1680601689555,0.16998983,28165.0,28164.0,0.723116]
[1680601690266,0.00018,28167.0,28166.0,0.10742588]
[1680601690498,0.02299,28169.0,28167.0,0.00018]
[1680601690718,0.02299,28169.0,28168.0,0.1679]
[1680601690936,0.02299,28169.0,28168.0,0.212103]
[1680601691152,0.02299,28169.0,28168.0,0.512103]
[1680601691368,0.02299,28169.0,28168.0,0.682443]
[1680601691797,0.02299,28169.0,28168.0,0.512103]
[1680601692019,0.00018,28174.0,28172.0,0.10742588]
[1680601692243,0.02405996,28175.0,28174.0,0.3]
[1680601692460,0.02317,28182.0,28175.0,0.40742588]
[1680601692675,0.0935676,28181.0,28180.0,0.084]
[1680601692894,0.0935676,28181.0,28180.0,0.26817481]
[1680601693114,0.0937476,28181.0,28180.0,0.126278]
[1680601693324,0.09275412,28181.0,28180.0,0.126278]
[1680601693538,0.09283755,28181.0,28180.0,0.126278]
[1680601695065,0.09283755,28181.0,28180.0,0.40333053]
[1680601695568,0.09257412,28181.0,28180.0,0.48683053]
[1680601696846,0.07913906,28181.0,28180.0,0.48683053]
[1680601697513,0.07939825,28181.0,28180.0,0.48683053]
[1680601698437,0.00025919,28181.0,28180.0,0.226763]
[1680601698685,0.02299,28182.0,28181.0,0.032595]
[1680601698950,0.02299,28182.0,28181.0,0.116395]
[1680601699200,0.01799,28182.0,28181.0,0.116395]
[1680601699710,0.02299,28183.0,28182.0,0.12086094]
[1680601699978,0.02299,28185.0,28182.0,0.82959794]
[1680601700280,0.02299,28185.0,28184.0,0.4872]
[1680601700313,0.02299,28185.0,28184.0,0.4869]
[1680601700486,0.02299,28185.0,28184.0,0.519125]
[1680601700915,0.02299,28185.0,28184.0,0.200125]
[1680601701385,0.02299,28185.0,28184.0,0.63711496]
[1680601701609,0.02299,28185.0,28184.0,0.228125]
[1680601702733,0.02299,28185.0,28184.0,0.90153556]
[1680601702942,0.02299,28185.0,28184.0,0.546825]
[1680601703367,0.02299,28185.0,28184.0,0.724225]
[1680601704057,0.02299,28185.0,28184.0,1.07893556]
[1680601704284,0.02299,28185.0,28184.0,0.555325]
[1680601704510,0.02299,28185.0,28184.0,0.546825]
[1680601706066,0.02299,28185.0,28184.0,1.00976815]
[1680601706295,0.02199,28185.0,28184.0,0.69026815]
[1680601706514,0.02199,28185.0,28184.0,0.227325]
[1680601706991,0.02199,28185.0,28184.0,0.144125]
[1680601707209,0.02199,28185.0,28184.0,0.54307207]
[1680601707443,0.0252584,28187.0,28185.0,0.3]
[1680601707651,0.0350714,28187.0,28186.0,0.030495]
[1680601708292,0.0350714,28187.0,28185.0,0.42772518]
[1680601708509,0.0748054,28187.0,28185.0,0.42772518]
[1680601708725,0.0748054,28187.0,28185.0,0.45572518]
[1680601708927,0.0748054,28187.0,28185.0,0.42772518]
[1680601709147,0.0748054,28187.0,28186.0,0.028]
[1680601709367,0.0749854,28187.0,28185.0,0.42772518]
[1680601709568,0.00025181,28186.0,28185.0,0.45572518]
[1680601709784,0.03805914,28186.0,28183.0,0.00018]
[1680601710026,0.03805914,28186.0,28183.0,0.4135194]
[1680601710027,0.07913906,28184.0,28183.0,0.4135194]
[1680601710253,0.14868006,28184.0,28182.0,0.00018]
[1680601710495,0.14868006,28184.0,28178.0,1.98138]
[1680601710733,0.16989821,28184.0,28183.0,0.34417735]
[1680601710954,0.17007821,28184.0,28183.0,0.34417735]
[1680601711161,0.17007821,28184.0,28181.0,0.00018]
[1680601711379,0.19822957,28184.0,28181.0,0.38268152]
[1680601711593,0.01982296,28183.0,28181.0,0.38286152]
[1680601711805,0.029805,28182.0,28181.0,0.38286152]
[1680601712224,0.029805,28182.0,28181.0,0.39686152]
[1680601712436,0.029805,28182.0,28181.0,0.01418]
[1680601712642,0.029805,28182.0,28181.0,0.014]
[1680601712855,0.05161045,28182.0,28180.0,0.34695022]
[1680601713070,0.06913906,28181.0,28180.0,0.34695022]
[1680601713285,0.07907406,28181.0,28180.0,0.34695022]
[1680601713490,0.07907406,28181.0,28180.0,0.37385943]
[1680601714352,0.07907406,28181.0,28180.0,0.40461743]
[1680601714788,0.07907406,28181.0,28180.0,0.42561743]
[1680601715003,0.07907406,28181.0,28180.0,0.39485943]
[1680601716854,0.0929396,28181.0,28180.0,0.02118]
[1680601717067,0.0929396,28181.0,28180.0,0.021]
[1680601717503,0.09318082,28181.0,28180.0,0.021]
[1680601718166,0.07931528,28181.0,28180.0,0.021]
[1680601719735,0.07907406,28181.0,28180.0,0.021]
[1680601722151,0.12367099,28181.0,28180.0,0.021]
[1680601722623,0.12391221,28181.0,28180.0,0.021]
[1680601723523,0.12367099,28181.0,28180.0,0.021]
[1680601723754,0.14510929,28181.0,28180.0,0.021]
[1680601724192,0.17630929,28181.0,28180.0,0.021]
[1680601724623,0.17655051,28181.0,28180.0,0.021]
[1680601725462,0.21092816,28181.0,28180.0,0.021]
[1680601726345,0.07907406,28181.0,28180.0,0.16289681]
[1680601726562,0.07907406,28181.0,28180.0,0.47438377]
[1680601726563,0.06938028,28181.0,28180.0,0.47438377]
[1680601726775,0.07138028,28181.0,28180.0,0.47556377]
[1680601726991,0.08131528,28181.0,28180.0,0.47556377]
[1680601727208,0.08131528,28181.0,28180.0,0.49656377]
[1680601727434,0.07931528,28181.0,28180.0,0.47456377]
[1680601727665,0.06913906,28181.0,28180.0,0.49556377]
[1680601728102,0.07907406,28181.0,28180.0,0.47456377]
[1680601728325,0.06913906,28181.0,28180.0,0.49556377]
[1680601728757,0.07907406,28181.0,28180.0,0.49556377]
[1680601729214,0.12762526,28181.0,28180.0,0.052751]
[1680601729425,0.16196804,28181.0,28178.0,0.08512832]
[1680601729658,0.16196804,28181.0,28178.0,0.00018]
[1680601729659,0.06869649,28180.0,28178.0,0.00018]
[1680601729881,0.06869649,28180.0,28177.0,0.3455661]
[1680601729882,0.06913906,28178.0,28177.0,0.3455661]
[1680601730094,0.07907506,28178.0,28177.0,0.3778161]
[1680601731015,0.07907506,28178.0,28177.0,0.3455661]
[1680601731231,0.07907506,28178.0,28177.0,0.3605661]
[1680601731888,0.09982392,28178.0,28177.0,0.3605661]
[1680601732349,0.09982392,28178.0,28177.0,0.00018]
[1680601732562,0.07907506,28178.0,28177.0,0.002]
[1680601732791,0.07907506,28178.0,28177.0,0.00218]
[1680601733218,0.07907506,28178.0,28177.0,0.00018]
[1680601733396,0.07907506,28178.0,28177.0,0.00218]
[1680601733637,0.06907506,28178.0,28177.0,0.002]
[1680601734783,0.08889264,28178.0,28177.0,0.035316]
[1680601735009,0.06907506,28178.0,28177.0,0.45624878]
[1680601735228,0.06907506,28178.0,28177.0,0.49017578]
[1680601735691,0.06907506,28178.0,28177.0,0.5731241]
[1680601735903,0.06907506,28178.0,28177.0,0.5751241]
[1680601737086,0.06907506,28178.0,28177.0,0.49017578]
[1680601737924,0.06907506,28178.0,28177.0,0.48817578]
[1680601738134,0.06907506,28178.0,28177.0,0.49017578]
[1680601738346,0.06907506,28178.0,28177.0,0.48817578]
[1680601738554,0.06907506,28178.0,28177.0,0.49017578]
[1680601738983,0.08935577,28178.0,28177.0,0.49017578]
[1680601739424,0.16475512,28178.0,28177.0,0.002]
[1680601739865,0.12045577,28178.0,28177.0,0.002]
[1680601740082,0.10017506,28178.0,28177.0,0.37065167]
[1680601740300,0.06907506,28178.0,28177.0,0.37065167]
[1680601740523,0.06931571,28178.0,28177.0,0.37065167]
[1680601740752,0.06931571,28178.0,28177.0,0.36865167]
[1680601740979,0.07231571,28178.0,28177.0,0.001]
[1680601741225,0.06931571,28178.0,28173.0,0.08494832]
[1680601741445,0.06931571,28178.0,28177.0,0.002]
[1680601741446,0.08939859,28178.0,28177.0,0.002]
[1680601741662,0.08939859,28178.0,28175.0,0.43678611]
[1680601741889,0.13440019,28178.0,28177.0,0.002]
[1680601742112,0.16127319,28178.0,28173.0,0.44239212]
[1680601742333,0.05913906,28174.0,28173.0,0.46339212]
[1680601742551,0.05913906,28174.0,28173.0,0.3574438]
[1680601742552,0.08895306,28174.0,28173.0,0.3574438]
[1680601742769,0.08895306,28174.0,28173.0,0.00018]
[1680601742985,0.10494357,28174.0,28172.0,0.08494832]
[1680601743192,0.10494357,28174.0,28172.0,0.43447876]
[1680601743592,0.1452622,28174.0,28172.0,0.43447876]
[1680601744042,0.1452622,28174.0,28172.0,0.44947876]
[1680601744262,0.02162142,28173.0,28172.0,0.44947876]
[1680601744487,0.03155942,28173.0,28172.0,0.01518]
[1680601745377,0.06265942,28173.0,28172.0,0.00018]
[1680601745614,0.06265942,28173.0,28172.0,0.002]
[1680601745615,0.33314509,28173.0,28172.0,0.002]
[1680601745839,0.63314509,28173.0,28172.0,0.002]
[1680601746545,0.05913906,28170.0,28169.0,0.00018]
[1680601746767,0.18649306,28170.0,28168.0,0.38823285]
[1680601746988,0.058623,28169.0,28168.0,0.38823285]
[1680601747208,0.04114,28169.0,28168.0,0.38823285]
[1680601747428,0.0776,28169.0,28168.0,0.38823285]
[1680601747648,0.09725561,28169.0,28168.0,0.38823285]
[1680601748088,0.09725561,28169.0,28168.0,0.00018]
[1680601748311,0.13589594,28169.0,28168.0,0.002]
[1680601750329,0.13595594,28169.0,28163.0,0.0209]
[1680601750550,0.05913906,28164.0,28163.0,0.0209]
[1680601750789,0.05913906,28164.0,28163.0,0.05231]
[1680601751010,0.06908006,28164.0,28163.0,0.44418307]
[1680601751228,0.08896306,28164.0,28163.0,0.48390807]
[1680601751503,0.05913906,28164.0,28163.0,0.45218307]
[1680601751725,0.06908006,28164.0,28163.0,0.48385507]
[1680601752174,0.06908006,28164.0,28163.0,0.47585507]
[1680601752391,0.05913906,28164.0,28163.0,0.45218307]
[1680601752624,0.05913906,28164.0,28163.0,0.48415307]
[1680601752845,0.05913906,28164.0,28163.0,0.06087]
[1680601753061,0.05913906,28164.0,28163.0,0.82983423]
[1680601753503,0.06908006,28164.0,28163.0,0.82983423]
[1680601754634,0.06908006,28164.0,28163.0,0.52983423]
[1680601754828,0.07598807,28164.0,28163.0,0.52983423]
[1680601756048,0.06908006,28164.0,28163.0,0.52983423]
[1680601756272,0.06308006,28164.0,28163.0,0.52983423]
[1680601756647,0.06308006,28164.0,28163.0,0.49786423]
[1680601758666,0.06331805,28164.0,28163.0,0.49786423]
[1680601762664,0.09451805,28164.0,28163.0,0.0289]
[1680601762903,0.29715883,28164.0,28163.0,0.0289]
[1680601763134,0.26957183,28164.0,28163.0,0.0289]
[1680601763364,0.30554383,28164.0,28163.0,0.0289]
[1680601763598,0.30554383,28164.0,28160.0,0.02108]
[1680601763824,0.05313906,28161.0,28160.0,0.0209]
[1680601764050,0.08296606,28161.0,28160.0,0.0209]
[1680601764313,0.12305067,28161.0,28160.0,0.0209]
[1680601764993,0.12305067,28161.0,28160.0,0.0219]
[1680601765440,0.08288282,28161.0,28160.0,0.0219]
[1680601766572,0.08312024,28161.0,28160.0,0.0219]
[1680601767512,0.44852241,28161.0,28160.0,0.0219]
[1680601767740,0.44944341,28161.0,28160.0,0.0219]
[1680601767965,0.42197041,28161.0,28160.0,0.0219]
[1680601768212,0.49498535,28161.0,28160.0,0.0209]
[1680601768446,0.50916535,28161.0,28160.0,0.0229]
[1680601768894,0.49516535,28161.0,28160.0,0.0209]
[1680601769122,0.50916535,28161.0,28160.0,0.0229]
[1680601769782,0.51766535,28161.0,28160.0,0.0229]
[1680601770006,0.51748535,28161.0,28160.0,0.0229]
[1680601770230,0.51766535,28161.0,28160.0,0.0229]
[1680601770457,0.20991518,28161.0,28160.0,0.0229]
[1680601770731,0.68728518,28161.0,28160.0,0.0229]
[1680601770959,0.98377843,28161.0,28160.0,0.0229]
[1680601771194,0.96373169,28161.0,28160.0,0.0229]
[1680601771411,0.94973169,28161.0,28160.0,0.0209]
[1680601771636,0.97673169,28161.0,28160.0,0.0209]
[1680601771847,0.94973169,28161.0,28160.0,0.0209]
[1680601772049,0.79918169,28161.0,28160.0,0.0209]
[1680601772978,0.96964169,28161.0,28160.0,0.0209]
[1680601773199,0.79918169,28161.0,28160.0,0.0209]
[1680601773393,0.69337518,28161.0,28160.0,0.0209]
[1680601773616,0.80740954,28161.0,28160.0,0.0209]
[1680601773839,0.52291518,28161.0,28160.0,0.0209]
[1680601774061,1.00937803,28161.0,28160.0,0.0209]
[1680601774517,0.67291518,28161.0,28160.0,0.0209]
[1680601774984,0.9642983,28161.0,28160.0,0.0209]
[1680601775215,0.67291518,28161.0,28160.0,0.0209]
[1680601776156,0.84337518,28161.0,28160.0,0.0209]
[1680601777787,0.96362986,28161.0,28160.0,0.0209]
[1680601778015,0.67291518,28161.0,28160.0,0.0209]
[1680601778969,0.82191472,28161.0,28160.0,0.0209]
[1680601780733,0.81341472,28161.0,28160.0,0.01008043]
[1680601780957,0.81323472,28161.0,28160.0,0.01008043]
[1680601782782,0.82173472,28161.0,28160.0,0.01008043]
[1680601786099,0.11012024,28161.0,28160.0,0.43726387]
[1680601786789,0.08312024,28161.0,28160.0,0.43744387]
[1680601787001,0.09312024,28161.0,28160.0,0.43744387]
[1680601787491,0.06329324,28161.0,28160.0,0.43744387]
[1680601787717,0.06329324,28161.0,28160.0,0.46777587]
[1680601787718,0.07323524,28161.0,28160.0,0.46777587]
[1680601787940,0.06323524,28161.0,28160.0,0.46777587]
[1680601788170,0.06323524,28161.0,28160.0,0.43744387]
[1680601788407,0.00012,28163.0,28160.0,0.31997724]
[1680601788633,0.029824,28164.0,28162.0,0.115342]
[1680601789337,0.029824,28164.0,28163.0,0.031406]
[1680601789558,0.029824,28164.0,28163.0,0.38639844]
[1680601789778,0.031824,28164.0,28163.0,0.38639844]
[1680601790295,0.029824,28164.0,28163.0,0.38639844]
[1680601791289,0.031824,28164.0,28163.0,0.40139844]
[1680601791941,0.009941,28164.0,28163.0,0.38639844]
[1680601792156,0.010941,28164.0,28163.0,0.39739844]
[1680601793878,0.010941,28164.0,28163.0,0.39757844]
[1680601794516,0.010941,28164.0,28163.0,0.39739844]
[1680601797190,0.010941,28164.0,28163.0,0.36599244]
[1680601798321,0.010941,28164.0,28163.0,0.39673644]
[1680601798532,0.010941,28164.0,28163.0,0.36599244]
[1680601799426,0.050708,28164.0,28163.0,0.36599244]
[1680601800743,0.050708,28164.0,28163.0,0.011]
[1680601800967,0.12393234,28164.0,28163.0,0.011]
[1680601801643,0.12414223,28164.0,28163.0,0.011]
[1680601802340,0.00120989,28164.0,28163.0,0.58386694]
[1680601802576,0.00018,28168.0,28163.0,0.17132981]
[1680601802850,0.00018,28168.0,28164.0,0.17172181]
[1680601802851,0.00994,28168.0,28164.0,0.17172181]
[1680601803071,0.00994,28168.0,28165.0,0.40044796]
[1680601803292,0.00994,28168.0,28166.0,0.030464]
[1680601803514,0.00994,28168.0,28167.0,0.031453]
[1680601803751,0.00994,28168.0,28166.0,0.031175]
[1680601803752,0.01194,28168.0,28166.0,0.031175]
[1680601804214,0.00994,28168.0,28166.0,0.031175]
[1680601804448,0.00994,28168.0,28166.0,0.035175]
[1680601804666,0.00994,28168.0,28166.0,0.004]
[1680601805437,0.00994,28168.0,28165.0,0.36856896]
[1680601805665,0.00020172,28167.0,28166.0,0.004]
[1680601805886,0.03002272,28167.0,28165.0,0.36856896]
[1680601806103,0.03002272,28167.0,28166.0,0.004]
[1680601806766,0.03002272,28167.0,28165.0,0.36856896]
[1680601806989,0.03002272,28167.0,28166.0,0.004]
[1680601807427,0.029821,28167.0,28166.0,0.004]
[1680601808327,0.029821,28167.0,28166.0,0.46287608]
[1680601808546,0.030821,28167.0,28166.0,0.46287608]
[1680601808759,0.029821,28167.0,28166.0,0.46287608]
[1680601808961,0.029821,28167.0,28166.0,0.46687608]
[1680601809704,0.029821,28167.0,28166.0,0.46287608]
[1680601809922,0.029821,28167.0,28166.0,0.46687608]
[1680601811029,0.029821,28167.0,28166.0,0.46287608]
[1680601811245,0.029821,28167.0,28166.0,0.46687608]
[1680601811906,0.029821,28167.0,28166.0,0.46287608]
[1680601812123,0.031821,28167.0,28166.0,0.47687608]
[1680601812558,0.029821,28167.0,28166.0,0.46305608]
[1680601812781,0.029821,28167.0,28166.0,0.46687608]
[1680601813053,0.029821,28167.0,28166.0,0.46287608]
[1680601813942,0.030821,28167.0,28166.0,0.47387608]
[1680601814164,0.029821,28167.0,28166.0,0.46287608]
[1680601814387,0.029821,28167.0,28166.0,0.46687608]
[1680601814824,0.029821,28167.0,28166.0,0.46287608]
[1680601815048,0.030821,28167.0,28166.0,0.47387608]
[1680601815266,0.029821,28167.0,28166.0,0.46287608]
[1680601815483,0.029821,28167.0,28166.0,0.46687608]
[1680601815927,0.029821,28167.0,28166.0,0.46287608]
[1680601816360,0.00994,28167.0,28166.0,0.46287608]
[1680601817015,0.01094,28167.0,28166.0,0.46287608]
[1680601817230,0.00994,28167.0,28166.0,0.46287608]
[1680601817462,0.00994,28167.0,28166.0,0.46687608]
[1680601817680,0.00994,28167.0,28166.0,0.46287608]
[1680601817892,0.01094,28167.0,28166.0,0.47387608]
[1680601818140,0.00994,28167.0,28166.0,0.46287608]
[1680601818370,0.00994,28167.0,28166.0,0.46687608]
[1680601819038,0.00994,28167.0,28166.0,0.46287608]
[1680601819916,0.01094,28167.0,28166.0,0.47387608]
[1680601820132,0.00994,28167.0,28166.0,0.46287608]
[1680601820364,0.00994,28167.0,28166.0,0.49696208]
[1680601820585,0.00994,28167.0,28166.0,0.46687608]
[1680601820804,0.00994,28167.0,28166.0,0.46287608]
[1680601821028,0.01094,28167.0,28166.0,0.47387608]
[1680601821474,0.00994,28167.0,28166.0,0.46287608]
[1680601821692,0.00994,28167.0,28166.0,0.46687608]
[1680601821942,0.00994,28167.0,28166.0,0.46287608]
[1680601822802,0.01094,28167.0,28166.0,0.47387608]
[1680601823025,0.02039543,28167.0,28165.0,0.00018]
[1680601823269,0.02039543,28167.0,28166.0,0.004]
[1680601823922,0.00994,28167.0,28166.0,0.004]
[1680601824143,0.00994,28167.0,28166.0,0.40540536]
[1680601824601,0.01019391,28167.0,28166.0,0.43700136]
[1680601824828,0.00025391,28167.0,28166.0,0.43667836]
[1680601825047,0.01019391,28167.0,28166.0,0.43667836]
[1680601825294,0.00025391,28167.0,28166.0,0.40540536]
[1680601825507,0.01019391,28167.0,28166.0,0.43607336]
[1680601825721,0.01019391,28167.0,28166.0,0.40540536]
[1680601827670,0.01805544,28167.0,28166.0,0.40540536]
[1680601831853,0.01805544,28167.0,28166.0,0.40140536]
[1680601832371,0.01019391,28167.0,28166.0,0.40540536]
[1680601832612,0.00994,28167.0,28166.0,0.40540536]
[1680601833949,0.00994,28167.0,28166.0,0.49035368]
[1680601834608,0.01019391,28167.0,28166.0,0.48635368]
[1680601834823,0.01219391,28167.0,28166.0,0.48635368]
[1680601837242,0.07081159,28167.0,28165.0,0.2125508]
[1680601837467,0.06752231,28166.0,28165.0,0.2123708]
[1680601837683,0.10917331,28166.0,28164.0,0.08504079]
[1680601837892,0.10917331,28166.0,28164.0,0.51228327]
[1680601838324,0.10917331,28166.0,28165.0,0.004]
[1680601838541,0.10917331,28166.0,28164.0,0.38486079]
[1680601838783,0.11017331,28166.0,28164.0,0.39586079]
[1680601838998,0.10917331,28166.0,28164.0,0.08486079]
[1680601839222,0.12225724,28166.0,28165.0,0.004]
[1680601839459,0.14974324,28166.0,28165.0,0.004]
[1680601840144,0.14992324,28166.0,28165.0,0.004]
[1680601840360,0.14992324,28166.0,28163.0,0.44212434]
[1680601840580,0.04381932,28165.0,28164.0,0.011]
[1680601840804,0.05376032,28165.0,28163.0,0.44212434]
[1680601841033,0.02493332,28165.0,28164.0,0.40089754]
[1680601841612,0.03393332,28165.0,28164.0,0.40189754]
[1680601841844,0.02493332,28165.0,28164.0,0.40089754]
[1680601842072,0.03393332,28165.0,28164.0,0.001]
[1680601842310,0.018941,28165.0,28164.0,0.001]
[1680601842758,0.009,28165.0,28164.0,0.36721353]
[1680601842986,0.009941,28165.0,28164.0,0.53611018]
[1680601843211,0.009941,28165.0,28164.0,0.95546899]
[1680601843443,0.018941,28165.0,28164.0,0.95646899]
[1680601843666,0.027941,28165.0,28164.0,0.95746899]
[1680601847694,0.027941,28165.0,28164.0,1.1698398]
[1680601848175,0.0327233,28165.0,28164.0,0.95746899]
[1680601848398,0.0327233,28165.0,28164.0,0.59125546]
[1680601848625,0.07713044,28165.0,28164.0,0.21406766]
[1680601849064,0.07713044,28165.0,28164.0,0.214064]
[1680601849065,0.0327233,28165.0,28164.0,0.214064]
[1680601849801,0.03297671,28165.0,28164.0,0.214064]
[1680601851131,0.03297671,28165.0,28164.0,0.08682808]
[1680601852496,0.06841519,28165.0,28164.0,0.08682808]
[1680601852751,0.03297671,28165.0,28164.0,0.08682808]
[1680601853414,0.02819441,28165.0,28164.0,0.08682808]
[1680601854271,0.02819441,28165.0,28164.0,0.52299081]
[1680601854952,0.02819441,28165.0,28164.0,0.08682808]
[1680601855194,0.02819441,28165.0,28164.0,0.90513157]
[1680601855424,0.02819441,28165.0,28164.0,0.60170204]
[1680601855654,0.02786441,28165.0,28164.0,0.57057404]
[1680601855875,0.02786441,28165.0,28164.0,0.57057405]
[1680601856220,0.02786441,28165.0,28164.0,0.48576172]
[1680601856447,0.02786441,28165.0,28164.0,0.57057205]
[1680601856636,0.02807174,28165.0,28164.0,0.57057205]
[1680601858020,0.02807174,28165.0,28164.0,0.90513215]
[1680601858240,0.02807174,28165.0,28164.0,0.57057661]
[1680601859574,0.04023043,28165.0,28164.0,0.57057661]
[1680601860290,0.02807174,28165.0,28164.0,0.44334069]
[1680601861262,0.02807174,28165.0,28164.0,0.08681489]
[1680601862767,0.06883467,28165.0,28164.0,0.08681489]
[1680601863006,0.05495874,28165.0,28164.0,0.002]
[1680601863218,0.11643711,28165.0,28164.0,0.002]
[1680601863475,0.08973011,28165.0,28164.0,0.002]
[1680601863687,0.05590074,28165.0,28164.0,0.002]
[1680601863896,0.02807174,28165.0,28164.0,0.002]
[1680601864337,0.06360681,28165.0,28164.0,0.34464296]
[1680601864553,0.02807174,28165.0,28164.0,0.34464296]
[1680601865234,0.02807174,28165.0,28164.0,0.42945785]
[1680601865874,0.02807174,28165.0,28164.0,0.34464296]
[1680601866505,0.02807174,28165.0,28164.0,0.37518896]
[1680601866744,0.02807174,28165.0,28164.0,0.42945785]
[1680601867166,0.02807174,28165.0,28164.0,0.45986385]
[1680601868749,0.02786441,28165.0,28164.0,0.45986385]
[1680601869196,0.02786441,28165.0,28164.0,0.9216432]
[1680601878181,0.02786441,28165.0,28164.0,0.97607463]
[1680601878385,0.02786441,28165.0,28164.0,0.58855731]
[1680601878587,0.02786441,28165.0,28164.0,0.55671631]
[1680601878796,0.02786441,28165.0,28164.0,0.97614226]
[1680601879010,0.02786441,28165.0,28164.0,0.92286183]
[1680601879430,0.02786441,28165.0,28164.0,0.92268183]
[1680601879652,0.018,28165.0,28164.0,0.72877269]
[1680601879864,0.027941,28165.0,28164.0,0.72877269]
[1680601880290,0.027941,28165.0,28164.0,0.69733569]
[1680601880536,0.027941,28165.0,28164.0,0.36282385]
[1680601880725,0.009941,28165.0,28164.0,0.36282385]
[1680601880929,0.011941,28165.0,28164.0,0.37582385]
[1680601881137,0.011941,28165.0,28164.0,0.67582385]
[1680601881373,0.011941,28165.0,28164.0,1.12529172]
[1680601881584,0.011941,28165.0,28164.0,0.70592385]
[1680601881768,0.011941,28165.0,28164.0,1.09519174]
[1680601881985,0.011941,28165.0,28164.0,1.04012063]
[1680601883031,0.011941,28165.0,28164.0,1.12730257]
[1680601883449,0.011941,28165.0,28164.0,0.70792841]
[1680601883662,0.011941,28165.0,28164.0,0.54860149]
[1680601884544,0.011941,28165.0,28164.0,0.67583741]
[1680601886766,0.011941,28165.0,28164.0,0.54860149]
[1680601887233,0.011941,28165.0,28164.0,0.58007549]
[1680601887450,0.011941,28165.0,28164.0,0.57966649]
[1680601887877,0.011941,28165.0,28164.0,0.54860149]
[1680601888079,0.011941,28165.0,28164.0,1.04169765]
[1680601888281,0.011941,28165.0,28164.0,0.70704615]
[1680601888521,0.011941,28165.0,28164.0,0.67584415]
[1680601888736,0.011941,28165.0,28164.0,0.70780715]
[1680601888948,0.011941,28165.0,28164.0,0.67584415]
[1680601889138,0.011941,28165.0,28164.0,1.09521788]
[1680601889339,0.011941,28165.0,28164.0,1.12664488]
[1680601889582,0.011941,28165.0,28164.0,0.70727115]
[1680601890010,0.011941,28165.0,28164.0,0.54860823]
[1680601892285,0.011941,28165.0,28164.0,0.67584415]
[1680601892495,0.011941,28165.0,28164.0,0.54860823]
[1680601892711,0.011941,28165.0,28164.0,0.57890523]
[1680601892991,0.011941,28165.0,28164.0,0.54860823]
[1680601893864,0.0184613,28165.0,28164.0,0.54860823]
[1680601895456,0.011941,28165.0,28164.0,0.54860823]
[1680601905874,0.011941,28165.0,28164.0,0.58000023]
[1680601907208,0.011941,28165.0,28164.0,0.54860823]
[1680601907649,0.011941,28165.0,28164.0,0.58028823]
[1680601907862,0.011941,28165.0,28164.0,0.54860823]
[1680601908085,0.011941,28165.0,28164.0,0.58027023]
[1680601908268,0.011941,28165.0,28164.0,0.58083123]
[1680601908502,0.011941,28165.0,28164.0,0.58007823]
[1680601909305,0.011941,28165.0,28164.0,0.54860823]
[1680601910513,0.002,28165.0,28164.0,0.57920223]
[1680601910975,0.011941,28165.0,28164.0,0.54860823]
[1680601913965,0.011941,28165.0,28164.0,0.24860823]
[1680601914190,0.03275671,28165.0,28164.0,0.24860823]
[1680601914882,0.03296404,28165.0,28164.0,0.16373382]
[1680601915534,0.03296404,28165.0,28164.0,0.013]
[1680601916621,0.03296404,28165.0,28164.0,0.09787441]
[1680601916851,0.011941,28165.0,28164.0,0.09787441]
[1680601917089,0.011941,28165.0,28164.0,0.5141893]
[1680601918752,0.011941,28165.0,28164.0,0.5444013]
[1680601918973,0.011941,28165.0,28164.0,0.5141893]
[1680601919190,0.011941,28165.0,28164.0,0.5445113]
[1680601919859,0.011941,28165.0,28164.0,0.5141893]